Workbook

Sheet Sheet1
A1: FATHER&SON PROPERTY INVESTMENTS
A2: 3600 Brownsville Rd, Brentwood, PA 15227
A4: Projected Financials 2026 | H4: Actual Financials 2025
C7: MONTHLY | F7: ANNUAL | J7: MONTHLY | M7: ANNUAL
A8: INCOME | H8: INCOME
A9: 2BDRM | B9: # 1 | C9: 970 | F9: =C9*12 -> 11640 | H9: 2BDRM | I9: # 1 | J9: 900 | M9: =J9*12 -> 10800
A10: 2BDRM | B10: #2 | C10: 1000 | F10: 12000 | H10: 2BDRM | I10: #2 | J10: 875 | M10: 10500
A11: 1BDRM | B11: #3 | C11: 850 | F11: 10200 | H11: 1BDRM | I11: #3 | J11: 800 | M11: 9600
A12: 2BDRM | B12: #4 | C12: 1100 | F12: 13200 | H12: 2BDRM | I12: #4 | J12: 1000 | M12: 12000
A13: Restaurant | C13: 2140 | F13: 25680 | H13: Restaurant | J13: 2140 | M13: 25680
H14: Water/sewage fee | J14: 280 | M14: 3360
B17: TOTAL | C17: =SUM(C9:C13) -> 6060 | F17: =SUM(F9:F13) -> 72720 | I17: TOTAL | J17: =SUM(J9:J14) -> 5995 | M17: =SUM(M9:M14) -> 71940
A18: Shared Restaurant tax | F18: 2458 | H18: Shared Restaurant tax | M18: 2458
A19: Restaurant Water/sewage fee | C19: 280 | F19: =C19*12 -> 3360
A21: LOSS OF RENTS (5%) | F21: =F17*0.05 -> 3636 | H21: LOSS OF RENTS (5%) | M21: =M17*0.05 -> 3597
A23: NET INCOME | F23: =SUM(F17+F19+F18-F21) -> 74902 | H23: NET INCOME | M23: =SUM(M17+M18-M21) -> 70801
A26: Expenses | H26: Expenses
A27: TAX | C27: =F27/12 -> 931.25 | F27: 11175 | H27: TAX | J27: =M27/12 -> 931.25 | M27: 11175
A28: INSURANCE | C28: 241.6666667 | F28: 2900 | H28: INSURANCE | J28: 241.6666667 | M28: 2900
A29: UTILITIES | C29: 666.6666667 | F29: 8000 | H29: UTILITIES | J29: 666.6666667 | M29: 8000
A30: REPAIRS | C30: 291.6666667 | F30: 3500 | H30: REPAIRS | J30: 291.6666667 | M30: 3500
A31: Garbage | C31: 92 | F31: =C31*12 -> 1104 | H31: Garbage | J31: 92 | M31: =J31*12 -> 1104
B33: TOTAL | C33: =SUM(C27:C32) -> 2223.25 | F33: =SUM(C33*12) -> 26679 | I33: TOTAL | J33: =SUM(J27:J32) -> 2223.25 | M33: =SUM(J33*12) -> 26679
A35: NOI | F35: =SUM(F23-F33) -> 48223 | H35: NOI | M35: =SUM(M23-M33) -> 44122
A38: Sale Price | B38: =F35/B39 -> 567329.4118 | H38: Sale Price | I38: =M35/I39 -> 519082.3529
A39: Cap Rate | B39: 0.085 | H39: Cap Rate | I39: 0.085
